fUST/lending_fUST_20240925
["ID","MTS","AMOUNT","RATE_DAILY","PERIOD"]
[339088942,1727231432791,-500.0,0.00014888,2]
[339088944,1727231432800,-500.0,0.00014888,2]
[339088946,1727231432810,-500.0,0.00014888,2]
[339088948,1727231432819,-499.15395556,0.00014888,2]
[339088950,1727231432830,-0.84604444,0.00014888,2]
[339088952,1727231432839,-500.0,0.00014888,2]
[339088954,1727231432849,-406.74596406,0.00014888,2]
[339088956,1727231432858,-500.0,0.00014888,2]
[339088958,1727231432868,-500.0,0.00014888,2]
[339088960,1727231432877,-500.0,0.00014888,2]
[339088962,1727231432886,-500.0,0.00014888,2]
[339088964,1727231432895,-500.0,0.00014888,2]
[339088966,1727231432905,-500.0,0.00014888,2]
[339088968,1727231432914,-500.0,0.00014888,2]
[339088970,1727231432923,-500.0,0.00014888,2]
[339088972,1727231432932,-500.0,0.00014888,2]
[339088974,1727231432941,-500.0,0.00014888,2]
[339088975,1727231432950,-500.0,0.00014888,2]
[339088977,1727231432959,-500.0,0.00014888,2]
[339088979,1727231432969,-500.0,0.00014888,2]
[339088981,1727231432978,-500.0,0.00014888,2]
[339088983,1727231432987,-500.0,0.00014888,2]
[339088985,1727231432997,-500.0,0.00014888,2]
[339088987,1727231433006,-500.0,0.00014888,2]
[339088989,1727231433015,-500.0,0.00014888,2]
[339088991,1727231433024,-500.0,0.00014888,2]
[339088993,1727231433035,-500.0,0.00014888,2]
[339088995,1727231433044,-500.0,0.00014888,2]
[339088997,1727231433053,-500.0,0.00014888,2]
[339088999,1727231433063,-500.0,0.00014888,2]
[339089001,1727231433073,-500.0,0.00014888,2]
[339089003,1727231433081,-500.0,0.00014888,2]
[339089005,1727231433092,-310.71367659,0.00014888,2]
[339089007,1727231433101,-500.0,0.00014888,2]
[339089009,1727231433111,-500.0,0.00014888,2]
[339089011,1727231433121,-500.0,0.00014888,2]
[339089013,1727231433131,-500.0,0.00014888,2]
[339089015,1727231433141,-500.0,0.00014888,2]
[339089017,1727231433151,-500.0,0.00014888,2]
[339089019,1727231433160,-499.99999999,0.00014888,2]
[339089021,1727231433169,-24900.0,0.00014889,2]
[339089023,1727231433179,-500.0,0.000149,2]
[339089025,1727231433188,-500.0,0.000149,2]
[339089027,1727231433198,-501.56778573,0.000149,2]
[339089029,1727231433208,-500.0,0.000149,2]
[339089031,1727231433217,-167.058525,0.00015375,2]
[339089033,1727231433227,-167.058525,0.00015442,2]
[339089035,1727231433237,-1000.0,0.00015448,2]
[339089038,1727231433247,-870.26529023,0.00015448,2]
[339089040,1727231433257,-1000.0,0.00015448,2]
[339089042,1727231433266,-167.058525,0.00015509,2]
[339089044,1727231433275,-167.058525,0.00015576,2]
[339089045,1727231433285,-167.058525,0.00015642,2]
[339089047,1727231433294,-167.058525,0.00015709,2]
[339089049,1727231433303,-167.058525,0.00015776,2]
[339089051,1727231433313,-167.058525,0.00015843,2]
[339089054,1727231433323,-167.058525,0.00015909,2]
[339089056,1727231433332,-167.058525,0.00015976,2]
[339089058,1727231433342,-500.0,0.00016,2]
[339089060,1727231433351,-500.0,0.00016,2]
[339089062,1727231433361,-167.058525,0.00016043,2]
[339089064,1727231433370,-167.058525,0.0001611,2]
[339089066,1727231433379,-167.058525,0.00016176,2]
[339089068,1727231433389,-420.0,0.00016295,2]
[339089070,1727231433398,-377.0351505,0.00016357,2]
[339089072,1727231433407,-795.30361169,0.0001645,2]
[339089074,1727231433416,-1500.0,0.0001645,2]
[339089076,1727231433426,-500.0,0.00016463,2]
[339089078,1727231433435,-500.00000006,0.00016526,2]
[339089080,1727231433444,-1000.0,0.00016548,2]
[339089082,1727231433454,-502.30500744,0.00016548,2]
[339089084,1727231433463,-1439.92421687,0.0001755,2]
[339089086,1727231433473,-2000.0,0.00017747,2]
[339089088,1727231433482,-500.0,0.00017808,2]
[339089090,1727231433491,-587.0,0.00017836,2]
[339089092,1727231433500,-501.34579052,0.00017907,2]
[339089094,1727231433509,-153.0,0.00018422,2]
[339089096,1727231433519,-153.2816296,0.00018456,2]
[339089098,1727231433528,-150.0,0.00018504,2]
[339089100,1727231433539,-7146.18197968,0.00018526,2]
[339089102,1727231433548,-6786.99532999,0.00018768,2]
[339089104,1727231433558,-189.31847364,0.0001877,2]
[339089106,1727231433568,-1000.0,0.0001877,2]
[339089108,1727231433577,-14324.84560712,0.00018838,2]
[339089110,1727231433587,-500.0,0.00018849,2]
[339089112,1727231433596,-189.31847364,0.0001887,2]
[339089114,1727231433605,-2319.69447679,0.0001887,2]
[339089116,1727231433615,-64322.02785861,0.0001887,2]
[339089228,1727231438870,-500.0,0.00018836,2]
[339089230,1727231438881,-497.47959459,0.00018836,2]
[339089232,1727231438891,-247.0980676,0.00018836,2]
[339089234,1727231438900,-440.47723814,0.00018836,2]
[339089236,1727231438910,-456.94509967,0.00018836,2]
[339089266,1727231439187,-43.05490033,0.00018836,2]
[339089268,1727231439196,-500.0,0.00018836,2]
[339089270,1727231439206,-19144.94261586,0.0001887,2]
[339089380,1727231440492,-12917.29620593,0.0001887,2]
[339089382,1727231440502,-135671.244527,0.0001887,3]
[339089384,1727231440511,-535.847763,0.0001888,2]
[339089386,1727231440521,-535.847763,0.0001888,2]
[339089388,1727231440530,-151.0,0.0001888,2]
[339089390,1727231440546,-152.756338,0.0001888,2]
[339089392,1727231440555,-1731.039566,0.0001888,2]
[339089394,1727231440564,-1731.039566,0.0001888,2]
[339089396,1727231440573,-164.920316,0.0001888,2]
[339089398,1727231440583,-960.750512,0.0001888,2]
[339089400,1727231440592,-164.920316,0.0001888,2]
[339089402,1727231440601,-960.750512,0.0001888,2]
[339089404,1727231440611,-489.377713,0.0001888,2]
[339089406,1727231440620,-489.377713,0.0001888,2]
[339089408,1727231440628,-307.922034,0.0001888,2]
[339089410,1727231440638,-307.922034,0.0001888,2]
[339089412,1727231440646,-445.891827,0.0001888,2]
[339089413,1727231440656,-151.0,0.0001888,2]
[339089415,1727231440665,-151.0,0.0001888,2]
[339089418,1727231440676,-445.891827,0.0001888,2]
[339089420,1727231440686,-151.0,0.0001888,2]
[339089421,1727231440696,-151.0,0.0001888,2]
[339089423,1727231440708,-460.924538,0.0001888,2]
[339089426,1727231440719,-460.924538,0.0001888,2]
[339089428,1727231440730,-460.924538,0.0001888,2]
[339089430,1727231440741,-460.924538,0.0001888,2]
[339089432,1727231440751,-2030.925849,0.0001888,2]
[339089434,1727231440762,-151.0,0.0001888,2]
[339089436,1727231440772,-2030.925849,0.0001888,2]
[339089438,1727231440786,-151.0,0.0001888,2]
[339089440,1727231440796,-2030.925849,0.0001888,2]
[339089442,1727231440807,-151.0,0.0001888,2]
[339089444,1727231440817,-2030.925849,0.0001888,2]
[339089446,1727231440826,-151.0,0.0001888,2]
[339089448,1727231440837,-772.275919,0.0001888,2]
[339089450,1727231440847,-772.275919,0.0001888,2]
[339089452,1727231440858,-772.275919,0.0001888,2]
[339089454,1727231440868,-772.275919,0.0001888,2]
[339089456,1727231440877,-151.0,0.0001888,2]
[339089458,1727231440887,-151.0,0.0001888,2]
[339089460,1727231440896,-243.165285,0.0001888,2]
[339089462,1727231440906,-243.165285,0.0001888,2]
[339089464,1727231440915,-1655.581779,0.0001888,2]
[339089466,1727231440925,-215.990506,0.0001888,2]
[339089468,1727231440934,-243.165285,0.0001888,2]
[339089470,1727231440944,-243.165285,0.0001888,2]
[339089472,1727231440955,-1655.581779,0.0001888,2]
[339089474,1727231440965,-2003.910085,0.0001888,2]
[339089476,1727231440974,-2416.873656,0.0001888,2]
[339089478,1727231440983,-2416.873656,0.0001888,2]
[339089480,1727231440993,-2003.910085,0.0001888,2]
[339089483,1727231441002,-2003.910085,0.0001888,2]
[339089484,1727231441012,-2003.910085,0.0001888,2]
[339089486,1727231441021,-2416.873656,0.0001888,2]
[339089489,1727231441031,-2416.873656,0.0001888,2]
[339089490,1727231441042,-151.0,0.0001888,2]
[339089493,1727231441052,-151.0,0.0001888,2]
[339089495,1727231441063,-282.671006,0.0001888,2]
[339089497,1727231441073,-804.439014,0.0001888,2]
[339089499,1727231441082,-804.439014,0.0001888,2]
[339089501,1727231441091,-804.439014,0.0001888,2]
[339089503,1727231441101,-804.439014,0.0001888,2]
[339089505,1727231441110,-150.112233,0.000189,2]
[339089507,1727231441120,-150.112233,0.000189,2]
[339089508,1727231441129,-150.112233,0.000189,2]
[339089510,1727231441138,-150.112233,0.000189,2]
[339089512,1727231441148,-150.112233,0.000189,2]
[339089514,1727231441157,-150.112233,0.000189,2]
[339089516,1727231441167,-1783.83265633,0.000189,2]
[339089518,1727231441177,-150.112233,0.000189,2]
[339089520,1727231441186,-150.112233,0.000189,2]
[339089522,1727231441196,-150.112233,0.000189,2]
[339089524,1727231441205,-3000.0,0.00018912,2]
[339089527,1727231441215,-29050.85395162,0.00018918,3]
[339089685,1727231443669,-1253.56014471,0.00018918,3]
[339089687,1727231443680,-17887.71924387,0.00018918,3]
[339089688,1727231443689,-25774.132998,0.00018918,3]
[339089689,1727231443701,-7207.56223513,0.00018918,3]
[339089739,1727232560124,-300.0,0.00016931,2]
[339089740,1727232560149,-500.0,0.00016932,2]
[339089741,1727232560173,-500.0,0.00016932,2]
[339089742,1727232560196,-343.36188856,0.00016932,2]
[339090039,1727232639218,-1430.6065182,0.00016574,2]
[339090040,1727232639229,-300.0,0.00016931,2]
[339090041,1727232639241,-156.63811144,0.00016932,2]
[339090042,1727232639253,-500.0,0.00016932,2]
[339090043,1727232639264,-500.0,0.00016932,2]
[339090044,1727232639274,-448.88259625,0.00016932,2]
[339090045,1727232639285,-500.0,0.00016932,2]
[339090046,1727232639296,-499.99999999,0.00016932,2]
[339090047,1727232639307,-24900.0,0.00016933,2]
[339090048,1727232639318,-180.513626,0.00017326,2]
[339090049,1727232639329,-500.0,0.000178,2]
[339090050,1727232639340,-500.0,0.00017808,2]
[339090051,1727232639356,-5000.0,0.00018,2]
[339090052,1727232639367,-2428.28830853,0.00018358,2]
[339090053,1727232639379,-629.5197843,0.00018458,2]
[339090054,1727232639390,-420.0,0.00018494,2]
[339090055,1727232639402,-296.5558309,0.000185,2]
[339090056,1727232639414,-153.0,0.00018658,2]
[339090057,1727232639425,-153.0,0.00018658,2]
[339090058,1727232639435,-153.0,0.00018658,2]
[339090059,1727232639447,-153.0,0.00018658,2]
[339090060,1727232639461,-153.0,0.00018658,2]
[339090061,1727232639472,-153.0,0.00018658,2]
[339090062,1727232639483,-153.0,0.00018658,2]
[339090063,1727232639494,-153.0,0.00018658,2]
[339090064,1727232639504,-153.0,0.00018658,2]
[339090065,1727232639515,-153.0,0.00018658,2]
[339090066,1727232639526,-153.0,0.00018658,2]
[339090067,1727232639536,-7146.18197968,0.00018699,2]
[339090068,1727232639547,-500.0,0.00018716,2]
[339090069,1727232639558,-500.0,0.00018753,2]
[339090070,1727232639568,-348.23571622,0.00018753,2]
[339090071,1727232639578,-172.96864732,0.00018753,2]
[339090072,1727232639589,-500.0,0.00018753,2]
[339090073,1727232639601,-358.3340667,0.00018753,2]
[339090074,1727232639612,-45891.09221508,0.00018754,2]
[339090104,1727233534476,3200.0,0.00015,10]
[339090221,1727233839919,-180.513626,0.00015635,2]
[339090222,1727233839928,-137.279924,0.00016319,2]
[339090223,1727233839939,-3028.29579057,0.00016319,2]
[339090224,1727233839949,-300.0,0.00016437,2]
[339090225,1727233839958,-500.0,0.00016438,2]
[339090226,1727233839968,-500.0,0.00016438,2]
[339090227,1727233839977,-500.0,0.00016438,2]
[339090228,1727233839986,-500.0,0.00016438,2]
[339090229,1727233839997,-500.0,0.00016438,2]
[339090230,1727233840007,-500.0,0.00016438,2]
[339090231,1727233840016,-502.10064786,0.00016438,2]
[339090232,1727233840026,-500.0,0.00016438,2]
[339090233,1727233840035,-837.96,0.00016438,2]
[339090234,1727233840045,-500.0,0.00016438,2]
[339090235,1727233840055,-500.0,0.00016438,2]
[339090236,1727233840065,-504.54419174,0.00016438,2]
[339090237,1727233840075,-562.10570016,0.00016438,2]
[339090238,1727233840084,-500.0,0.00016438,2]
[339090239,1727233840094,-500.0,0.00016438,2]
[339090240,1727233840103,-278.39177032,0.00016438,2]
[339090241,1727233840151,-341.52513039,0.00016438,2]
[339090242,1727233840161,-500.0,0.00016438,2]
[339090243,1727233840171,-504.70607778,0.00016438,2]
[339090244,1727233840180,-500.0,0.00016438,2]
[339090245,1727233840190,-500.0,0.00016438,2]
[339090246,1727233840199,-1733.94,0.00016438,2]
[339090247,1727233840209,-500.0,0.00016438,2]
[339090248,1727233840218,-500.0,0.00016438,2]
[339090249,1727233840227,-500.0,0.00016438,2]
[339090250,1727233840237,-502.43482438,0.00016438,2]
[339090251,1727233840249,-500.0,0.00016438,2]
[339090252,1727233840260,-500.0,0.00016438,2]
[339090253,1727233840269,-576.32,0.00016438,2]
[339090254,1727233840279,-500.0,0.00016438,2]
[339090255,1727233840289,-227.96152502,0.00016449,2]
[339090261,1727233843111,-33.54159299,0.00016449,2]
[339090262,1727233843124,-238.49688199,0.00016449,2]
[339090263,1727233843133,-438.76473292,0.00016694,2]
[339090264,1727233843142,-15489.67857584,0.00016695,2]
[339090272,1727234470369,-250.0,0.00015836,2]
[339090279,1727234920036,807.52525885,0.00012,2]
[339090281,1727234951159,-1155.55753076,0.00015767,2]
[339090282,1727234951180,-498.4201839,0.00015867,2]
[339090283,1727234951202,-300.0,0.00015888,2]
[339090284,1727234951224,-923.29636688,0.00015889,2]
[339090325,1727235032356,-300.0,0.00015888,2]
[339090326,1727235032368,-23976.70363312,0.00015889,2]
[339090327,1727235032378,-838.9057662,0.00016,2]
[339090328,1727235032388,-561.44135101,0.00016,5]
[339090422,1727235040123,-1207.47108392,0.00015767,2]
[339090424,1727235040133,-188.71942748,0.00016,5]
[339090425,1727235040506,-249.83922151,0.00016,5]
[339090426,1727235040518,-1452.42328679,0.0001618,2]
[339090427,1727235040531,-562.98829314,0.0001618,2]
[339090478,1727235417157,213.8,0.00010959,2]
[339090479,1727235427660,178.17,0.00010959,2]
[339090480,1727235438371,890.87,0.00010959,2]
[339090483,1727235828747,4640.581842,0.00013529,2]
[339090484,1727235946464,250.0,0.0001348,2]
[339090485,1727235946812,250.0,0.00013517,2]
[339090486,1727235947041,250.0,0.00013554,2]
[339090487,1727235947282,250.0,0.00013591,2]
[339090488,1727235947495,250.0,0.00013628,2]
[339090489,1727235947770,250.0,0.00013665,2]
[339090490,1727235947985,250.0,0.00013702,2]
[339090491,1727235948226,250.0,0.00013739,2]
[339090492,1727235948445,250.0,0.00013776,2]
[339090493,1727235948650,250.0,0.00013813,2]
[339090494,1727235948868,250.0,0.0001385,2]
[339090495,1727235949093,250.0,0.00013887,2]
[339090496,1727235949538,250.0,0.00013924,2]
[339090497,1727235949746,250.0,0.00013961,2]
[339090498,1727235949958,250.0,0.00013998,2]
[339090499,1727235950197,250.0,0.00014035,2]
[339090500,1727235950403,250.0,0.00014072,2]
[339090501,1727236042804,275.0721998,0.00013699,2]
[339090510,1727236143200,373.8707818,0.00013699,2]
[339090511,1727236156265,-250.0,0.00014109,2]
[339090512,1727236156289,-250.0,0.00014146,2]
[339090513,1727236156316,-250.0,0.00014183,2]
[339090514,1727236156338,-300.0,0.00014305,2]
[339090515,1727236156360,-300.0,0.00014305,2]
[339090516,1727236156383,-500.0,0.00014306,2]
[339090517,1727236156406,-500.0,0.00014306,2]
[339090518,1727236156433,-500.0,0.00014306,2]
[339090519,1727236156455,-261.5903468,0.00014306,2]
[339090520,1727236156478,-282.99260016,0.00014306,2]
[339090619,1727236240105,-300.0,0.00014305,2]
[339090620,1727236240115,-300.0,0.00014305,2]
[339090621,1727236240126,-217.00739984,0.00014306,2]
[339090622,1727236240136,-500.0,0.00014306,2]
[339090623,1727236240147,-500.0,0.00014306,2]
[339090624,1727236240158,-500.0,0.00014306,2]
[339090625,1727236240168,-500.0,0.00014306,2]
[339090626,1727236240178,-500.0,0.00014306,2]
[339090627,1727236240188,-332.67233852,0.00014306,2]
[339090628,1727236240200,-34177.05401495,0.00014307,2]
[339090629,1727236240210,-1688.308083,0.00014407,2]
[339090630,1727236240220,-500.0,0.000145,2]
[339090631,1727236240231,-24900.0,0.0001454,2]
[339090632,1727236240242,-338.82529773,0.0001488,2]
[339090633,1727236240253,-1000.0,0.0001498,2]
[339090634,1727236240263,-1688.308083,0.00015092,2]
[339090635,1727236240272,-1000.0,0.00015186,2]
[339090636,1727236240284,-338.82529773,0.00015524,2]
[339090637,1727236240294,-500.0,0.00015616,2]
[339090638,1727236240304,-500.0,0.00015616,2]
[339090639,1727236240314,-420.0,0.00015667,2]
[339090640,1727236240324,-420.0,0.00015735,2]
[339090641,1727236240335,-1688.308083,0.00015777,2]
[339090642,1727236240345,-150.0,0.00015908,2]
[339090643,1727236240356,-7146.18197968,0.00015936,2]
[339090644,1727236240366,-500.0,0.00016018,2]
[339090645,1727236240376,-500.0,0.00016018,2]
[339090646,1727236240386,-500.0,0.00016018,2]
[339090647,1727236240397,-500.0,0.00016018,2]
[339090648,1727236240407,-500.0,0.00016018,2]
[339090649,1727236240417,-500.0,0.00016018,2]
[339090650,1727236240428,-407.15647986,0.00016018,2]
[339090651,1727236240439,-489.377713,0.00016067,2]
[339090652,1727236240449,-489.377713,0.00016067,2]
[339090653,1727236240459,-151.0,0.00016067,2]
[339090654,1727236240469,-151.0,0.00016067,2]
[339090655,1727236240479,-1731.039566,0.00016067,2]
[339090656,1727236240489,-1731.039566,0.00016067,2]
[339090657,1727236240499,-460.924538,0.00016067,2]
[339090658,1727236240509,-460.924538,0.00016067,2]
[339090659,1727236240519,-307.922034,0.00016067,2]
[339090660,1727236240528,-307.922034,0.00016067,2]
[339090661,1727236240538,-151.0,0.00016067,2]
[339090662,1727236240549,-152.756338,0.00016067,2]
[339090663,1727236240560,-242.05597336,0.00016146,2]
[339090664,1727236240570,-250.05949912,0.00016146,2]
[339090665,1727236240583,-500.0,0.00016146,2]
[339090666,1727236240595,-201.92620543,0.00016146,2]
[339090667,1727236240606,-445.87571186,0.00016146,2]
[339090668,1727236240616,-500.0,0.00016146,2]
[339090669,1727236240625,-500.0,0.00016146,2]
[339090670,1727236240636,-465.96168163,0.00016146,2]
[339090671,1727236240646,-500.0,0.00016146,2]
[339090672,1727236240656,-151.0,0.00016147,2]
[339090674,1727236240666,-1968.140649,0.00016147,2]
[339090676,1727236240676,-1968.140649,0.00016147,2]
[339090677,1727236240686,-1526.076881,0.00016147,2]
[339090679,1727236240696,-1526.076881,0.00016147,2]
[339090680,1727236240706,-151.0,0.00016147,2]
[339090681,1727236240716,-417.27379285,0.00016156,2]
[339090682,1727236240726,-338.82529773,0.00016167,2]
[339090683,1727236240736,-151.0,0.00016177,2]
[339090684,1727236240746,-151.0,0.00016177,2]
[339090685,1727236240757,-417.27379284,0.00016197,2]
[339090686,1727236240767,-417.27379284,0.00016237,2]
[339090687,1727236240777,-55959.6939177,0.00016256,2]
[339090688,1727236240787,-86422.2574294,0.00016256,2]
[339090689,1727236240797,-176.176383,0.00016267,2]
[339090690,1727236240808,-176.176383,0.00016267,2]
[339090691,1727236240818,-1473.990331,0.00016267,2]
[339090692,1727236240828,-1473.990331,0.00016267,2]
[339090693,1727236240838,-536.791048,0.00016267,2]
[339090694,1727236240848,-536.791048,0.00016267,2]
[339090695,1727236240859,-188.524895,0.00016267,2]
[339090696,1727236240870,-188.524895,0.00016267,2]
[339090697,1727236240880,-151.0,0.00016267,2]
[339090698,1727236240891,-616.995615,0.00016267,2]
[339090699,1727236240902,-616.995615,0.00016267,2]
[339090700,1727236240913,-489.443216,0.00016267,2]
[339090701,1727236240923,-489.443216,0.00016267,2]
[339090702,1727236240933,-151.0,0.00016267,2]
[339090703,1727236240943,-7343.289458,0.00016267,2]
[339090704,1727236240954,-7343.289458,0.00016267,2]
[339090705,1727236240968,-2000.0,0.00016267,2]
[339090706,1727236240981,-2000.0,0.00016267,2]
[339090707,1727236240996,-2000.0,0.00016267,2]
[339090708,1727236241008,-2000.0,0.00016267,2]
[339090709,1727236241019,-2000.0,0.00016267,2]
[339090710,1727236241029,-2000.0,0.00016267,2]
[339090711,1727236241040,-2000.0,0.00016267,2]
[339090712,1727236241049,-2000.0,0.00016267,2]
[339090713,1727236241060,-2000.0,0.00016267,2]
[339090714,1727236241069,-2000.0,0.00016267,2]
[339090715,1727236241080,-2000.0,0.00016267,2]
[339090716,1727236241090,-2000.0,0.00016267,2]
[339090717,1727236241100,-2000.0,0.00016267,2]
[339090718,1727236241110,-2000.0,0.00016267,2]
[339090719,1727236241120,-2000.0,0.00016267,2]
[339090720,1727236241130,-2000.0,0.00016267,2]
[339090721,1727236241140,-2000.0,0.00016267,2]
[339090722,1727236241149,-2000.0,0.00016267,2]
[339090723,1727236241159,-2000.0,0.00016267,2]
[339090724,1727236241169,-1719.583193,0.00016267,2]
[339090725,1727236241179,-151.0,0.00016267,2]
[339090726,1727236241188,-1968.140649,0.00016267,2]
[339090727,1727236241198,-1968.140649,0.00016267,2]
[339090728,1727236241209,-1526.076881,0.00016267,2]
[339090729,1727236241219,-1526.076881,0.00016267,2]
[339090730,1727236241230,-151.0,0.00016267,2]
[339090731,1727236241240,-151.0,0.00016267,2]
[339090732,1727236241251,-151.0,0.00016267,2]
[339090733,1727236241262,-151.0,0.00016267,2]
[339090734,1727236241272,-417.27379284,0.00016278,2]
[339090735,1727236241283,-417.27379284,0.00016318,2]
[339090736,1727236241293,-411.950204,0.00016334,2]
[339090737,1727236241305,-151.0,0.00016338,2]
[339090738,1727236241316,-151.0,0.00016338,2]
[339090739,1727236241327,-489.377713,0.00016338,2]
[339090740,1727236241337,-489.377713,0.00016338,2]
[339090741,1727236241347,-151.0,0.00016338,2]
[339090742,1727236241716,-151.0,0.00016338,2]
[339090743,1727236241735,-1731.039566,0.00016338,2]
[339090744,1727236241755,-1731.039566,0.00016338,2]
[339090745,1727236241770,-2519.39634858,0.00016338,2]
[339090746,1727236241779,-843.933867,0.00016338,2]
[339090747,1727236241789,-843.933867,0.00016338,2]
[339090748,1727236241798,-460.924538,0.00016338,2]
[339090749,1727236241807,-460.924538,0.00016338,2]
[339090750,1727236241816,-307.922034,0.00016338,2]
[339090751,1727236241827,-307.922034,0.00016338,2]
[339090752,1727236241838,-151.0,0.00016338,2]
[339090753,1727236241848,-1526.076881,0.00016338,2]
[339090754,1727236241860,-1526.076881,0.00016338,2]
[339090755,1727236241869,-151.0,0.00016338,2]
[339090756,1727236241879,-150.112233,0.000164,2]
[339090757,1727236241888,-150.112236,0.000164,2]
[339090758,1727236241897,-150.112233,0.000164,2]
[339090759,1727236241906,-150.112233,0.000164,2]
[339090760,1727236241916,-150.112233,0.000164,2]
[339090761,1727236241926,-150.112233,0.000164,2]
[339090762,1727236241935,-150.112233,0.000164,2]
[339090763,1727236241944,-150.112233,0.000164,2]
[339090764,1727236241954,-150.112233,0.000164,2]
[339090765,1727236241965,-150.112233,0.000164,2]
[339090766,1727236241978,-150.112233,0.000164,2]
[339090767,1727236241989,-150.112233,0.000164,2]
[339090768,1727236242000,-1968.140649,0.000164,2]
[339090769,1727236242011,-1968.140649,0.000164,2]
[339090770,1727236242023,-151.0,0.000164,2]
[339090771,1727236242033,-150.112233,0.000164,2]
[339090772,1727236242044,-150.112233,0.000164,2]
[339090773,1727236242055,-150.112239,0.000164,2]
[339090774,1727236242066,-55959.6939177,0.00016408,2]
[339090775,1727236242075,-86422.2574294,0.00016408,2]
[339090776,1727236242084,-167879.081753,0.00016418,2]
[339090777,1727236242093,-259266.772288,0.00016418,2]
[339090778,1727236242105,-489.377713,0.00016418,2]
[339090779,1727236242116,-489.377713,0.00016418,2]
[339090780,1727236242135,-151.0,0.00016418,2]
[339090781,1727236242150,-151.0,0.00016418,2]
[339090782,1727236242161,-1731.039566,0.00016418,2]
[339090783,1727236242172,-1731.039566,0.00016418,2]
[339090784,1727236242182,-460.924538,0.00016418,2]
[339090785,1727236242195,-460.924538,0.00016418,2]
[339090786,1727236242208,-307.922034,0.00016418,2]
[339090787,1727236242218,-307.922034,0.00016418,2]
[339090788,1727236242230,-151.0,0.00016418,2]
[339090789,1727236242240,-151.0,0.00016418,2]
[339090790,1727236242250,-1968.140649,0.00016418,2]
[339090791,1727236242260,-1968.140649,0.00016418,2]
[339090792,1727236242270,-1526.076881,0.00016418,2]
[339090793,1727236242280,-1526.076881,0.00016418,2]
[339090794,1727236242290,-1526.076881,0.00016418,2]
[339090795,1727236242300,-1526.076881,0.00016418,2]
[339090796,1727236242311,-151.0,0.00016418,2]
[339090797,1727236242320,-151.0,0.00016418,2]
[339090798,1727236242330,-151.0,0.00016418,2]
[339090799,1727236242340,-151.0,0.00016428,2]
[339090800,1727236242350,-151.0,0.00016428,2]
[339090801,1727236242359,-2030.925849,0.00016428,2]
[339090802,1727236242369,-2030.925849,0.00016428,2]
[339090803,1727236242379,-772.275919,0.00016428,2]
[339090804,1727236242389,-772.275919,0.00016428,2]
[339090805,1727236242398,-772.275919,0.00016428,2]
[339090806,1727236242408,-772.275919,0.00016428,2]
[339090807,1727236242418,-2003.910085,0.00016428,2]
[339090808,1727236242429,-2003.910085,0.00016428,2]
[339090809,1727236242439,-453.888966,0.00016428,2]
[339090810,1727236242448,-453.888966,0.00016428,2]
[339090811,1727236242458,-453.888966,0.00016428,2]
[339090812,1727236242467,-453.888966,0.00016428,2]
[339090813,1727236242477,-151.0,0.00016428,2]
[339090814,1727236242487,-151.0,0.00016428,2]
[339090815,1727236242497,-151.0,0.00016428,2]
[339090816,1727236242507,-151.0,0.00016428,2]
[339090817,1727236242518,-151.0,0.00016428,2]
[339090818,1727236242530,-151.0,0.00016428,2]
[339090819,1727236242542,-151.0,0.00016428,2]